fUST/lending_fUST_20251119
["ID","MTS","AMOUNT","RATE_DAILY","PERIOD"]
[394368637,1763499041428,-162.01184378,0.00049014,30]
[394368638,1763499041437,-1692.17499431,0.0004911,120]
[394368639,1763499041446,-546.89,0.000493,30]
[394368640,1763499041456,-500.0,0.00049315,120]
[394368641,1763499041465,-500.0,0.00049315,120]
[394368642,1763499041474,-628.49183645,0.00049315,120]
[394368643,1763499041483,-516.83066844,0.00049315,120]
[394368644,1763499041492,-620.19541503,0.00049315,120]
[394368645,1763499041502,-548.10178199,0.00049315,120]
[394368646,1763499041511,-1000.0,0.00049315,2]
[394368647,1763499041520,-500.0,0.00049315,120]
[394368648,1763499041530,-535.48647517,0.00049315,120]
[394368649,1763499041539,-500.0,0.00049315,120]
[394368650,1763499041548,-500.0,0.00049315,120]
[394368651,1763499041557,-648.56268006,0.00049315,120]
[394368652,1763499041566,-500.0,0.00049315,120]
[394368653,1763499041575,-500.0,0.00049315,120]
[394368654,1763499041585,-500.0,0.00049315,120]
[394368655,1763499041594,-500.0,0.00049315,120]
[394368656,1763499041603,-1000.0,0.00049315,120]
[394368657,1763499041612,-500.0,0.00049315,20]
[394368658,1763499041621,-500.0,0.00049315,120]
[394368659,1763499041631,-500.0,0.00049315,120]
[394368660,1763499041640,-500.0,0.00049315,20]
[394368661,1763499041649,-1000.0,0.00049315,2]
[394368662,1763499041658,-500.0,0.00049315,120]
[394368663,1763499041669,-500.0,0.00049315,120]
[394368664,1763499041678,-500.0,0.00049315,120]
[394368665,1763499041688,-500.0,0.00049315,120]
[394368666,1763499041697,-523.83,0.00049315,7]
[394368667,1763499041707,-500.0,0.00049315,120]
[394368668,1763499041716,-225.28639915,0.00049315,120]
[394368669,1763499041725,-506.6724034,0.00049315,120]
[394368670,1763499041734,-518.0075481,0.00049315,120]
[394368671,1763499041831,-1273.68,0.00049315,2]
[394368672,1763499041850,-500.0,0.00049315,120]
[394368673,1763499041860,-508.16702317,0.00049315,120]
[394368674,1763499041869,-516.05627558,0.00049315,120]
[394368675,1763499041878,-500.0,0.00049315,120]
[394368676,1763499041888,-502.95716207,0.00049315,120]
[394368677,1763499041897,-533.71840899,0.00049315,120]
[394368678,1763499041906,-500.0,0.00049315,120]
[394368679,1763499041916,-1000.0,0.00049315,120]
[394368680,1763499041926,-197.6772618,0.00049315,120]
[394368681,1763499041935,-500.0,0.00049315,120]
[394368682,1763499041944,-384.29802236,0.00049315,120]
[394368683,1763499041954,-735.75,0.00049315,120]
[394368684,1763499041963,-1136.24,0.00049315,120]
[394368685,1763499041972,-506.05808097,0.00049315,120]
[394368686,1763499041982,-229.8502705,0.00049315,120]
[394368687,1763499041991,-500.0,0.00049315,120]
[394368688,1763499042000,-500.0,0.00049315,120]
[394368689,1763499042009,-531.45645369,0.00049315,120]
[394368690,1763499042018,-500.0,0.00049315,120]
[394368691,1763499042027,-500.0,0.00049315,120]
[394368692,1763499042037,-324.57532885,0.00049315,120]
[394368693,1763499042046,-500.0,0.00049315,120]
[394368694,1763499042055,-361.71008414,0.00049315,120]
[394368695,1763499042064,-500.0,0.00049315,120]
[394368696,1763499042073,-560.60689827,0.00049315,120]
[394368697,1763499042082,-500.0,0.00049315,120]
[394368698,1763499042092,-500.0,0.00049315,120]
[394368699,1763499042101,-500.0,0.00049315,120]
[394368700,1763499042110,-500.0,0.00049315,120]
[394368701,1763499042119,-500.0,0.00049315,120]
[394368702,1763499042127,-516.82556053,0.00049315,120]
[394368703,1763499042136,-797.43,0.00049315,120]
[394368704,1763499042145,-537.95639695,0.00049315,120]
[394368705,1763499042154,-500.0,0.00049315,120]
[394368706,1763499042165,-938.81,0.00049315,120]
[394368707,1763499042174,-621.33,0.00049315,30]
[394368708,1763499042184,-500.0,0.00049315,120]
[394368709,1763499042193,-515.72851757,0.00049315,120]
[394368710,1763499042203,-278.87975029,0.00049315,120]
[394368711,1763499042212,-500.0,0.00049315,120]
[394368712,1763499042222,-518.10198958,0.00049315,120]
[394368713,1763499042231,-500.0,0.00049315,120]
[394368714,1763499042241,-285.3489775,0.00049315,120]
[394368715,1763499042250,-500.0,0.00049315,120]
[394368716,1763499042259,-618.52532328,0.00049315,120]
[394368717,1763499042269,-500.0,0.00049315,120]
[394368718,1763499042278,-500.0,0.00049315,120]
[394368719,1763499042287,-604.78172512,0.00049315,120]
[394368720,1763499042296,-500.0,0.00049315,120]
[394368721,1763499042305,-500.0,0.00049315,120]
[394368722,1763499042315,-545.93802086,0.00049315,30]
[394368723,1763499042324,-500.0,0.00049315,120]
[394368724,1763499042333,-500.0,0.00049315,120]
[394368725,1763499042343,-2043.3,0.00049315,120]
[394368726,1763499042352,-500.0,0.00049315,120]
[394368727,1763499042361,-500.0,0.00049315,7]
[394368728,1763499042370,-505.37056382,0.00049315,120]
[394368729,1763499042380,-500.0,0.00049315,120]
[394368730,1763499042389,-321.15808605,0.00049315,120]
[394368731,1763499042398,-1541.98,0.00049315,120]
[394368732,1763499042408,-500.0,0.00049315,120]
[394368733,1763499042418,-179.55922257,0.00049315,120]
[394368734,1763499042427,-500.0,0.00049315,120]
[394368735,1763499042437,-500.0,0.00049315,120]
[394368736,1763499042446,-500.0,0.00049315,120]
[394368737,1763499042456,-500.0,0.00049315,120]
[394368738,1763499042466,-500.0,0.00049315,120]
[394368739,1763499042475,-638.35983114,0.00049315,120]
[394368740,1763499042485,-510.56938024,0.00049315,120]
[394368741,1763499042495,-500.0,0.00049315,120]
[394368742,1763499042504,-500.0,0.00049315,120]
[394368743,1763499042513,-632.93565343,0.00049315,120]
[394368744,1763499042523,-500.0,0.00049315,120]
[394368745,1763499042532,-162.76709793,0.00049315,120]
[394368746,1763499042542,-297.4426849,0.00049315,120]
[394368747,1763499042551,-548.88504141,0.00049315,120]
[394368748,1763499042560,-541.03741686,0.00049315,120]
[394368750,1763499042570,-500.0,0.00049315,120]
[394368752,1763499042579,-485.87202134,0.00049315,120]
[394368753,1763499042589,-500.0,0.00049315,120]
[394368756,1763499042598,-500.0,0.00049315,120]
[394368758,1763499042607,-500.0,0.00049315,120]
[394368760,1763499042616,-500.0,0.00049315,2]
[394368762,1763499042626,-524.81484148,0.00049315,120]
[394368763,1763499042634,-522.80486135,0.00049315,120]
[394368764,1763499042644,-525.8573576,0.00049315,120]
[394368765,1763499042653,-521.04516871,0.00049315,120]
[394368767,1763499042662,-170.0,0.00049315,120]
[394368768,1763499042672,-500.0,0.00049315,120]
[394368769,1763499042681,-539.36156059,0.00049315,120]
[394368770,1763499042690,-518.65752645,0.00049315,120]
[394368772,1763499042699,-500.0,0.00049315,60]
[394368774,1763499042708,-500.0,0.00049315,120]
[394368776,1763499042717,-1000.0,0.00049315,2]
[394368777,1763499042726,-500.0,0.00049315,120]
[394368779,1763499042736,-555.44946207,0.00049315,120]
[394368781,1763499042745,-500.0,0.00049315,120]
[394368783,1763499042754,-861.36,0.00049315,60]
[394368785,1763499042764,-500.0,0.00049315,120]
[394368787,1763499042775,-510.51009718,0.00049315,120]
[394368788,1763499042788,-871.97,0.00049315,120]
[394368789,1763499042797,-500.0,0.00049315,2]
[394368790,1763499042806,-500.0,0.00049315,7]
[394368791,1763499042816,-590.95663289,0.00049315,10]
[394368792,1763499042826,-171.59827234,0.00049315,120]
[394368793,1763499042835,-375.48412043,0.00049315,120]
[394368794,1763499042845,-636.9776239,0.00049315,120]
[394368795,1763499042857,-500.0,0.00049315,120]
[394368796,1763499042867,-500.0,0.00049315,7]
[394368797,1763499042877,-500.0,0.00049315,120]
[394368798,1763499042886,-512.53259483,0.00049315,120]
[394368799,1763499042896,-512.26644268,0.00049315,120]
[394368800,1763499042905,-513.12898304,0.00049315,120]
[394368801,1763499042915,-388.15420214,0.00049315,120]
[394368803,1763499042924,-500.0,0.00049315,120]
[394368805,1763499042934,-500.0,0.00049315,120]
[394368807,1763499042943,-662.46,0.00049315,120]
[394368808,1763499042952,-632.57084708,0.00049315,120]
[394368809,1763499042961,-500.0,0.00049315,120]
[394368810,1763499042970,-500.0,0.00049315,120]
[394368811,1763499042979,-500.0,0.00049315,10]
[394368812,1763499042988,-500.0,0.00049315,120]
[394368813,1763499042997,-500.0,0.00049315,120]
[394368814,1763499043006,-500.0,0.00049315,120]
[394368815,1763499043016,-513.25557392,0.00049315,120]
[394368816,1763499043026,-500.0,0.00049315,120]
[394368817,1763499043035,-500.0,0.00049315,120]
[394368818,1763499043044,-500.0,0.00049315,120]
[394368819,1763499043054,-500.0,0.00049315,120]
[394368820,1763499043063,-526.59631208,0.00049315,120]
[394368821,1763499043073,-500.0,0.00049315,120]
[394368822,1763499043082,-6704.53,0.00049315,3]
[394368823,1763499043091,-500.0,0.00049315,120]
[394368824,1763499043100,-500.0,0.00049315,120]
[394368825,1763499043109,-500.0,0.00049315,120]
[394368826,1763499043119,-515.0782928,0.00049315,120]
[394368827,1763499043127,-2500.0,0.00049315,30]
[394368828,1763499043137,-834.93,0.00049315,120]
[394368829,1763499043146,-500.0,0.00049315,120]
[394368830,1763499043155,-500.0,0.00049315,120]
[394368831,1763499043164,-1157.43,0.00049315,120]
[394368832,1763499043174,-1000.0,0.00049315,30]
[394368833,1763499043184,-646.78,0.00049315,120]
[394368834,1763499043193,-1096.17,0.00049315,60]
[394368835,1763499043202,-500.0,0.00049315,120]
[394368836,1763499043211,-500.0,0.00049315,120]
[394368837,1763499043221,-500.0,0.00049315,120]
[394368838,1763499043231,-232.00181667,0.00049315,120]
[394368839,1763499043240,-503.17123572,0.00049315,120]
[394368840,1763499043250,-500.0,0.00049315,120]
[394368841,1763499043259,-1546.16,0.00049315,3]
[394368842,1763499043269,-500.0,0.00049315,120]
[394368843,1763499043278,-516.43823519,0.00049315,120]
[394368844,1763499043287,-500.0,0.00049315,120]
[394368845,1763499043296,-522.4830275,0.00049315,120]
[394368846,1763499043305,-500.0,0.00049315,120]
[394368847,1763499043315,-664.65,0.00049315,120]
[394368848,1763499043325,-500.0,0.00049315,120]
[394368849,1763499043334,-511.70390583,0.00049315,120]
[394368850,1763499043343,-1474.21,0.00049315,120]
[394368851,1763499043352,-637.59006346,0.00049315,120]
[394368852,1763499043361,-500.0,0.00049315,120]
[394368853,1763499043371,-500.0,0.00049315,120]
[394368854,1763499043380,-500.0,0.00049315,120]
[394368855,1763499043389,-615.41729445,0.00049315,120]
[394368856,1763499043398,-603.37250779,0.00049315,120]
[394368857,1763499043407,-516.95745059,0.00049315,120]
[394368858,1763499043418,-500.0,0.00049315,120]
[394368859,1763499043427,-500.0,0.00049315,120]
[394368860,1763499043435,-500.0,0.00049315,120]
[394368861,1763499043444,-735.74,0.00049315,120]
[394368862,1763499043454,-500.0,0.00049315,120]
[394368863,1763499043463,-500.0,0.00049315,120]
[394368864,1763499043472,-500.0,0.00049315,120]
[394368865,1763499043481,-345.62030376,0.00049315,120]
[394368866,1763499043491,-500.0,0.00049315,120]
[394368867,1763499043500,-525.61271696,0.00049315,120]
[394368868,1763499043509,-500.0,0.00049315,120]
[394368869,1763499043518,-423.25464821,0.00049315,120]
[394368870,1763499043528,-500.0,0.00049315,120]
[394368871,1763499043537,-500.0,0.00049315,120]
[394368872,1763499043546,-500.0,0.00049315,120]
[394368873,1763499043556,-303.28791203,0.00049315,120]
[394368874,1763499043565,-1457.2,0.00049315,120]
[394368875,1763499043574,-500.0,0.00049315,120]
[394368876,1763499043583,-500.0,0.00049315,120]
[394368877,1763499043592,-500.0,0.00049315,120]
[394368878,1763499043601,-500.0,0.00049315,120]
[394368879,1763499043610,-500.0,0.00049315,120]
[394368880,1763499043619,-500.0,0.00049315,120]
[394368881,1763499043627,-500.0,0.00049315,120]
[394368882,1763499043637,-500.0,0.00049315,120]
[394368883,1763499043646,-6855.08,0.00049315,120]
[394368884,1763499043655,-500.0,0.00049315,7]
[394368885,1763499043665,-500.0,0.00049315,120]
[394368886,1763499043674,-500.0,0.00049315,120]
[394368887,1763499043683,-500.0,0.00049315,120]
[394368888,1763499043692,-500.0,0.00049315,120]
[394368889,1763499043701,-501.4573882,0.00049315,2]
[394368890,1763499043710,-500.0,0.00049315,120]
[394368891,1763499043719,-543.53094482,0.00049315,120]
[394368892,1763499043728,-500.0,0.00049315,120]
[394368893,1763499043737,-610.79213326,0.00049315,2]
[394368894,1763499043746,-534.55381625,0.00049315,120]
[394368895,1763499043756,-500.0,0.00049315,120]
[394368896,1763499043765,-527.56659843,0.00049315,120]
[394368897,1763499043776,-500.0,0.00049315,2]
[394368898,1763499043787,-500.0,0.00049315,7]
[394368899,1763499043796,-500.0,0.00049315,120]
[394368900,1763499043806,-500.0,0.00049315,120]
[394368901,1763499043816,-226.33087862,0.00049315,120]
[394368902,1763499043826,-500.0,0.00049315,120]
[394368903,1763499043836,-500.0,0.00049315,120]
[394368904,1763499043845,-640.46258943,0.00049315,120]
[394368905,1763499043855,-500.0,0.00049315,120]
[394368906,1763499043864,-500.0,0.00049315,120]
[394368907,1763499043873,-301.5764969,0.00049315,120]
[394368908,1763499043882,-500.0,0.00049315,120]
[394368909,1763499043890,-2215.86,0.00049315,120]
[394368910,1763499043899,-512.2525734,0.00049315,120]
[394368911,1763499043908,-500.0,0.00049315,120]
[394368912,1763499043918,-646.16,0.00049315,120]
[394368913,1763499043927,-500.0,0.00049315,30]
[394368914,1763499043936,-500.0,0.00049315,120]
[394368915,1763499043944,-500.0,0.00049315,120]
[394368916,1763499043954,-500.0,0.00049315,120]
[394368917,1763499043973,-522.1331802,0.00049315,120]
[394368918,1763499043989,-516.5212782,0.00049346,60]
[394368919,1763499043998,-600.0,0.0004938,2]
[394368920,1763499044008,-529907.8417,0.0004944,30]
[394368921,1763499044020,-151.435288,0.0004944,120]
[394368922,1763499044029,-151.0,0.0004944,120]
[394368923,1763499044039,-179.725366,0.0004944,120]
[394368924,1763499044049,-151.0,0.0004944,120]
[394368925,1763499044060,-151.0,0.0004944,120]
[394368926,1763499044071,-151.0,0.0004944,120]
[394368927,1763499044079,-158.429041,0.0004944,120]
[394368928,1763499044091,-151.551734,0.0004944,120]
[394368929,1763499044101,-151.0,0.0004944,120]
[394368930,1763499044111,-151.0,0.0004944,120]
[394368931,1763499044120,-151.0,0.0004944,120]
[394368932,1763499044130,-151.0,0.0004944,120]
[394368933,1763499044141,-151.0,0.0004944,120]
[394368934,1763499044154,-151.0,0.0004944,120]
[394368935,1763499044165,-151.0,0.0004944,120]
[394368936,1763499044175,-581.539941,0.0004944,120]
[394368937,1763499044188,-581.539941,0.0004944,120]
[394368938,1763499044199,-581.539941,0.0004944,120]
[394368939,1763499044208,-581.539941,0.0004944,120]
[394368940,1763499044219,-151.0,0.0004944,120]
[394368941,1763499044229,-151.0,0.0004944,120]
[394368942,1763499044240,-151.0,0.0004944,120]
[394368943,1763499044249,-151.0,0.0004944,120]
[394368944,1763499044259,-152.135188,0.0004944,60]
[394368945,1763499044270,-175.258359,0.0004944,7]
[394368946,1763499044280,-151.0,0.0004944,90]
[394368947,1763499044289,-151.0,0.0004944,90]
[394368948,1763499044298,-151.0,0.0004944,120]
[394368949,1763499044307,-151.0,0.0004944,120]
[394368950,1763499044317,-151.0,0.0004944,120]
[394368951,1763499044326,-151.0,0.0004944,120]
[394368952,1763499044335,-151.0,0.0004944,120]
[394368953,1763499044439,-467.678948,0.0004944,120]
[394368954,1763499044448,-467.678948,0.0004944,120]
[394368955,1763499044458,-467.678948,0.0004944,120]
[394368956,1763499044467,-467.678948,0.0004944,120]
[394368957,1763499044478,-151.0,0.0004944,120]
[394368958,1763499044487,-151.0,0.0004944,120]
[394368959,1763499044496,-151.0,0.0004944,120]
[394368960,1763499044505,-151.0,0.0004944,120]
[394368961,1763499044514,-151.0,0.0004944,120]
[394368962,1763499044523,-151.0,0.0004944,120]
[394368963,1763499044532,-162.385731,0.0004944,120]
[394368964,1763499044542,-151.0,0.0004944,120]
[394368965,1763499044551,-154.372671,0.0004944,120]
[394368966,1763499044560,-151.0,0.0004944,120]
[394368967,1763499044569,-151.0,0.0004944,120]
[394368968,1763499044579,-151.0,0.0004944,120]
[394368969,1763499044587,-154.7197,0.0004944,120]
[394368970,1763499044597,-151.0,0.0004944,120]
[394368971,1763499044606,-151.0,0.0004944,120]
[394368972,1763499044615,-151.0,0.0004944,120]
[394368973,1763499044624,-151.0,0.0004944,120]
[394368974,1763499044633,-151.0,0.0004944,120]
[394368975,1763499044643,-151.0,0.0004944,120]
[394368976,1763499044652,-151.0,0.0004944,120]
[394368977,1763499044661,-151.0,0.0004944,120]
[394368978,1763499044670,-151.0,0.0004944,120]
[394368979,1763499044679,-186.705423,0.0004944,120]
[394368980,1763499044688,-151.0,0.0004944,120]
[394368981,1763499044698,-151.0,0.0004944,120]
[394368982,1763499044707,-186.705423,0.0004944,120]
[394368983,1763499044717,-151.0,0.0004944,120]
[394368984,1763499044726,-151.0,0.0004944,120]
[394368985,1763499044735,-186.705423,0.0004944,120]
[394368986,1763499044744,-151.0,0.0004944,120]
[394368987,1763499044754,-151.0,0.0004944,120]
[394368988,1763499044763,-186.705423,0.0004944,120]
[394368989,1763499044773,-151.0,0.0004944,120]
[394368990,1763499044787,-151.0,0.0004944,120]
[394368991,1763499044796,-151.0,0.0004944,120]
[394368992,1763499044805,-151.0,0.0004944,120]
[394368993,1763499044814,-151.0,0.0004944,120]
[394368994,1763499044825,-151.0,0.0004944,7]
[394368995,1763499044834,-156.761832,0.0004944,120]
[394368996,1763499044843,-151.0,0.0004944,120]
[394368997,1763499044855,-151.0,0.0004944,120]
[394368998,1763499044864,-151.0,0.0004944,120]
[394368999,1763499044873,-151.0,0.0004944,120]
[394369000,1763499044882,-151.0,0.0004944,120]
[394369001,1763499044891,-1692.17499431,0.00049445,120]
[394369002,1763499044899,-250.0,0.00049473,10]
[394369003,1763499044908,-150.0,0.00049588,2]
[394369004,1763499044917,-500.0,0.00049589,120]
[394369005,1763499044926,-500.0,0.00049589,120]
[394369006,1763499044935,-500.0,0.00049589,120]
[394369007,1763499044944,-1000.0,0.00049589,2]
[394369008,1763499044953,-500.0,0.00049589,120]
[394369009,1763499044962,-500.0,0.00049589,120]
[394369010,1763499044971,-500.0,0.00049589,120]
[394369011,1763499044979,-500.0,0.00049589,120]
[394369012,1763499044988,-500.0,0.00049589,120]
[394369013,1763499044997,-500.0,0.00049589,120]
[394369014,1763499045007,-500.0,0.00049589,120]
[394369015,1763499045016,-1000.0,0.00049589,120]
[394369016,1763499045025,-505.00062817,0.00049589,20]
[394369017,1763499045034,-500.0,0.00049589,120]
[394369018,1763499045044,-500.0,0.00049589,120]
[394369019,1763499045052,-500.0,0.00049589,20]
[394369020,1763499045062,-1000.0,0.00049589,2]
[394369021,1763499045071,-500.0,0.00049589,120]
[394369022,1763499045080,-292.57858245,0.00049589,120]
[394369023,1763499045089,-500.0,0.00049589,120]
[394369024,1763499045098,-500.0,0.00049589,120]
[394369025,1763499045107,-523.83,0.00049589,7]
[394369026,1763499045116,-500.0,0.00049589,120]
[394369027,1763499045125,-1273.68,0.00049589,2]
[394369028,1763499045134,-500.0,0.00049589,120]
[394369029,1763499045143,-500.0,0.00049589,120]
[394369030,1763499045152,-500.0,0.00049589,120]
[394369031,1763499045161,-1000.0,0.00049589,120]
[394369032,1763499045172,-500.0,0.00049589,120]
[394369033,1763499045181,-735.75,0.00049589,120]
[394369034,1763499045190,-1136.24,0.00049589,120]
[394369035,1763499045199,-500.0,0.00049589,120]
[394369036,1763499045208,-344.69388686,0.00049589,120]
[394369037,1763499045217,-500.0,0.00049589,120]
[394369038,1763499045226,-500.0,0.00049589,120]
[394369039,1763499045235,-500.0,0.00049589,120]
[394369040,1763499045244,-500.0,0.00049589,120]
[394369041,1763499045253,-500.0,0.00049589,120]
[394369042,1763499045262,-500.0,0.00049589,120]
[394369043,1763499045271,-500.0,0.00049589,120]
[394369044,1763499045280,-500.0,0.00049589,120]
[394369045,1763499045289,-500.0,0.00049589,120]
[394369046,1763499045298,-797.43,0.00049589,120]
[394369047,1763499045307,-456.93198969,0.00049589,120]
[394369048,1763499045316,-938.81,0.00049589,120]
[394369049,1763499045325,-621.33,0.00049589,30]
[394369050,1763499045334,-154.43600451,0.00049589,120]
[394369051,1763499045343,-500.0,0.00049589,120]
[394369052,1763499045352,-500.0,0.00049589,120]
[394369053,1763499045361,-387.92412931,0.00049589,120]
[394369054,1763499045371,-500.0,0.00049589,120]
[394369055,1763499045381,-500.0,0.00049589,120]
[394369056,1763499045390,-500.0,0.00049589,120]
[394369057,1763499045400,-500.0,0.00049589,120]
[394369058,1763499045409,-500.0,0.00049589,120]
[394369059,1763499045419,-500.0,0.00049589,120]
[394369060,1763499045428,-2043.3,0.00049589,120]
[394369061,1763499045438,-500.0,0.00049589,120]
[394369062,1763499045447,-500.0,0.00049589,7]
[394369063,1763499045456,-500.0,0.00049589,120]
[394369064,1763499045466,-1541.98,0.00049589,120]
[394369065,1763499045475,-500.0,0.00049589,120]
[394369066,1763499045484,-500.0,0.00049589,120]
[394369067,1763499045493,-150.38711809,0.00049589,120]
[394369068,1763499045502,-500.0,0.00049589,120]
[394369069,1763499045511,-500.0,0.00049589,120]
[394369070,1763499045520,-500.0,0.00049589,120]
[394369071,1763499045529,-500.0,0.00049589,120]
[394369072,1763499045538,-163.75443008,0.00049589,120]
[394369073,1763499045547,-500.0,0.00049589,120]
[394369074,1763499045555,-500.0,0.00049589,120]
[394369075,1763499045564,-197.76618797,0.00049589,120]
[394369076,1763499045573,-500.0,0.00049589,120]
[394369077,1763499045582,-500.0,0.00049589,120]
[394369078,1763499045591,-500.0,0.00049589,2]
[394369079,1763499045601,-500.0,0.00049589,120]
[394369080,1763499045610,-500.0,0.00049589,60]
[394369081,1763499045618,-500.0,0.00049589,120]
[394369082,1763499045627,-502.7709872,0.00049589,120]
[394369083,1763499045636,-500.0,0.00049589,120]
[394369084,1763499045645,-861.36,0.00049589,60]
[394369085,1763499045654,-871.97,0.00049589,120]
[394369086,1763499045663,-500.0,0.00049589,2]
[394369087,1763499045672,-500.0,0.00049589,7]
[394369088,1763499045681,-500.0,0.00049589,120]
[394369089,1763499045690,-500.0,0.00049589,7]
[394369090,1763499045704,-500.0,0.00049589,120]
[394369091,1763499045714,-152.84696948,0.00049589,120]
[394369092,1763499045723,-500.0,0.00049589,120]
[394369093,1763499045732,-662.46,0.00049589,120]
[394369094,1763499045741,-500.0,0.00049589,120]
[394369095,1763499045751,-500.0,0.00049589,120]
[394369096,1763499045760,-500.0,0.00049589,10]
[394369097,1763499045769,-500.0,0.00049589,120]
[394369098,1763499045784,-500.0,0.00049589,120]
[394369099,1763499045793,-500.0,0.00049589,120]
[394369100,1763499045803,-500.0,0.00049589,120]
[394369101,1763499045812,-500.0,0.00049589,120]
[394369102,1763499045823,-500.0,0.00049589,120]
[394369103,1763499045832,-450.95918109,0.00049589,120]
[394369104,1763499045841,-417.50205174,0.00049589,120]
[394369105,1763499045853,-6704.53,0.00049589,3]
[394369106,1763499045862,-500.0,0.00049589,120]
[394369107,1763499045872,-500.0,0.00049589,120]
[394369108,1763499045881,-500.0,0.00049589,120]
[394369109,1763499045891,-995.84619548,0.00049589,30]
[394369110,1763499045900,-834.93,0.00049589,120]
[394369112,1763499045911,-500.0,0.00049589,120]
[394369114,1763499045920,-500.0,0.00049589,120]
[394369116,1763499045929,-1157.43,0.00049589,120]
[394369117,1763499045938,-1000.0,0.00049589,30]
[394369118,1763499045947,-646.78,0.00049589,120]
[394369119,1763499045956,-1096.17,0.00049589,60]
[394369120,1763499045965,-500.0,0.00049589,120]
[394369121,1763499045974,-500.0,0.00049589,120]
[394369122,1763499045983,-500.0,0.00049589,120]
[394369123,1763499045993,-500.0,0.00049589,120]
[394369124,1763499046002,-1546.16,0.00049589,3]
[394369125,1763499046010,-500.0,0.00049589,120]
[394369126,1763499046019,-549.62960322,0.00049589,120]
[394369127,1763499046028,-500.0,0.00049589,120]
[394369128,1763499046037,-664.65,0.00049589,120]
[394369129,1763499046046,-500.0,0.00049589,120]
[394369130,1763499046055,-1474.21,0.00049589,120]
[394369131,1763499046064,-384.23932211,0.00049589,120]
[394369132,1763499046073,-500.0,0.00049589,120]
[394369133,1763499046082,-500.0,0.00049589,120]
[394369134,1763499046090,-500.0,0.00049589,120]
[394369135,1763499046099,-181.68660349,0.00049589,120]
[394369136,1763499046109,-500.0,0.00049589,120]
[394369137,1763499046117,-735.74,0.00049589,120]
[394369139,1763499046126,-420.66080221,0.00049589,120]
[394369141,1763499046135,-500.0,0.00049589,120]
[394369143,1763499046144,-500.0,0.00049589,120]
[394369145,1763499046153,-194.37967494,0.00049589,120]
[394369147,1763499046162,-500.0,0.00049589,120]
[394369149,1763499046171,-179.96636995,0.00049589,120]
[394369150,1763499046180,-500.0,0.00049589,120]
[394369152,1763499046189,-500.0,0.00049589,120]
[394369154,1763499046198,-1457.2,0.00049589,120]
[394369156,1763499046207,-500.0,0.00049589,120]
[394369157,1763499046216,-500.0,0.00049589,120]
[394369158,1763499046225,-500.0,0.00049589,120]
[394369159,1763499046234,-466.77909882,0.00049589,120]
[394369160,1763499046243,-500.0,0.00049589,120]
[394369161,1763499046252,-500.0,0.00049589,120]
[394369162,1763499046261,-500.0,0.00049589,120]
[394369163,1763499046270,-500.0,0.00049589,120]
[394369164,1763499046279,-6855.08,0.00049589,120]
[394369165,1763499046288,-500.0,0.00049589,7]
[394369166,1763499046297,-500.0,0.00049589,120]
[394369167,1763499046307,-500.0,0.00049589,120]